Workbook

Sheet Лист1
A1: Школа | C1: МБОУ "Ивашкинская СОШ" | F1: Согласовано: | G1: должность | H1: директор
A2: Типовое примерное меню приготавливаемых блюд | G2: фамилия | H2: Гаврилова А.Н.
A3: Возрастная категория | E3: 7-11 лет | G3: дата | H3: 1 | I3: 9 | J3: 2025
H4: день | I4: месяц | J4: год
A5: Неделя | B5: День недели | C5: Прием пищи | D5: Раздел меню | E5: Блюда | F5: Вес блюда, г | G5: Белки | H5: Жиры | I5: Углеводы | J5: Калорийность | K5: № рецептуры | L5: Цена
A6: 1 | B6: 1 | C6: Завтрак | D6: гор.блюдо | E6: Сырники из творога с кашей молочной "Дружба" с маслом сливочным | F6: 215 | G6: 10.55 | H6: 11.85 | I6: 39.4 | J6: 324.45 | K6: ТТК
D7: гор.блюдо
D8: гор.напиток | E8: Кофейный напиток с молоком | F8: 200 | G8: 3.2 | H8: 2.7 | I8: 6 | J8: 60.7 | K8: 379
D9: хлеб | E9: Хлеб ржаной | F9: 30 | G9: 1.98 | H9: 0.36 | I9: 11.88 | J9: 59.4
D10: закуска
D11: фрукты | E11: Яблоки | F11: 100 | G11: 0.4 | H11: 0.4 | I11: 9.8 | J11: 47
D12: итого | F12: 545 | G12: 16.1 | H12: 15.29 | I12: 67.08 | J12: 491.55 | L12: 74.77
A13: =A6 -> 1 | B13: =B6 -> 1 | C13: Обед | D13: закуска
D14: 1 блюдо
D15: 2 блюдо
D16: гарнир
D17: напиток
D18: хлеб бел.
D19: хлеб черн.
D22: итого | F22: =SUM(F13:F21) -> 0 | G22: =SUM(G13:G21) -> 0 | H22: 0 | I22: 0
A23: =A6 -> 1 | B23: =B6 -> 1 | C23: Итого за день: | F23: =F12+F22 -> 545 | G23: =G12+G22 -> 16.1 | H23: 15.29 | I23: 67.08 | J23: 491.55 | L23: =L12+L22 -> 74.77
A24: 1 | B24: 2 | C24: Завтрак | D24: гор.блюдо | E24: Тефтели мясные в сметанно-томатном соусе | F24: 100 | G24: 7.28 | H24: 11.94 | I24: 8.36 | J24: 124 | K24: 279.331
D25: гор.напиток | E25: Напиток из свежих фруктов | F25: 200 | G25: 0.34 | H25: 0.17 | I25: 21.46 | J25: 103.5 | K25: ТТК
D26: хлеб | E26: Хлеб пшеничный | F26: 45 | G26: 3.42 | H26: 0.36 | I26: 22.14 | J26: 105.75
D27: хлеб
D28: гор.блюдо | E28: Макаронные изделия отварные с маслом сливочным | F28: 185 | G28: 5.1 | H28: 3.62 | I28: 31.96 | J28: 176.1 | K28: 203
D29: кисломол. | E29: Сыр порционно | F29: 15 | G29: 3.95 | H29: 3.99 | I29: 0 | J29: 51.5 | K29: 15
D30: итого | F30: 545 | G30: =SUM(G24:G29) -> 20.09 | H30: =SUM(H24:H29) -> 20.08 | I30: =SUM(I24:I29) -> 83.92 | J30: 560.84 | L30: 74.77
A31: =A24 -> 1 | B31: =B24 -> 2 | C31: Обед | D31: закуска
D32: 1 блюдо
D33: 2 блюдо
D34: гарнир
D35: напиток
D36: хлеб бел.
D37: хлеб черн.
D40: итого | F40: =SUM(F31:F39) -> 0 | G40: =SUM(G31:G39) -> 0 | H40: =SUM(H31:H39) -> 0 | I40: =SUM(I31:I39) -> 0 | J40: =SUM(J31:J39) -> 0 | L40: 0
A41: =A24 -> 1 | B41: =B24 -> 2 | C41: Итого за день: | F41: =F30+F40 -> 545 | G41: =G30+G40 -> 20.09 | H41: =H30+H40 -> 20.08 | I41: =I30+I40 -> 83.92 | J41: =J30+J40 -> 560.84 | L41: 74.77
A42: 1 | B42: 3 | C42: Завтрак | D42: гор.блюдо | E42: Птица запеченная | F42: 100 | G42: 10.42 | H42: 12.43 | I42: 8.65 | J42: 192 | K42: ТТК
D43: гор.блюдо | E43: Пюре картофельное с маслом сливочным | F43: 153 | G43: 3.08 | H43: 6.25 | I43: 20.47 | J43: 150.45 | K43: 312
D44: гор.напиток | E44: Компот из урюка | F44: 200 | G44: 0.55 | H44: 0.06 | I44: 17.93 | J44: 76.4 | K44: 348
D45: хлеб | E45: Хлеб пшеничный | F45: 30 | G45: 2.28 | H45: 0.24 | I45: 14.76 | J45: 70.5
D46: закуска | E46: Свекла отварная дольками | F46: 60 | G46: 1.08 | H46: 0.06 | I46: 5.88 | J46: 28.8 | K46: ТТК
D47: хлеб | E47: Хлеб ржаной | F47: 40 | G47: 2.64 | H47: 0.48 | I47: 15.84 | J47: 79.2
D48: итого | F48: 583 | G48: =SUM(G42:G47) -> 20.05 | H48: =SUM(H42:H47) -> 19.52 | I48: =SUM(I42:I47) -> 83.53 | J48: =SUM(J42:J47) -> 597.35 | L48: 74.77
A49: =A42 -> 1 | B49: =B42 -> 3 | C49: Обед | D49: закуска
D50: 1 блюдо
D51: 2 блюдо
D52: гарнир
D53: напиток
D54: хлеб бел.
D55: хлеб черн.
D58: итого | F58: =SUM(F49:F57) -> 0 | G58: =SUM(G49:G57) -> 0 | H58: =SUM(H49:H57) -> 0 | I58: =SUM(I49:I57) -> 0 | J58: =SUM(J49:J57) -> 0 | L58: 0
A59: =A42 -> 1 | B59: =B42 -> 3 | C59: Итого за день: | F59: =F48+F58 -> 583 | G59: =G48+G58 -> 20.05 | H59: =H48+H58 -> 19.52 | I59: =I48+I58 -> 83.53 | J59: =J48+J58 -> 597.35 | L59: 74.77
A60: 1 | B60: 4 | C60: Завтрак | D60: гор.блюдо | E60: Гуляш из отварной говядины | F60: 100 | G60: 10.39 | H60: 14.79 | I60: 10.3 | J60: 221 | K60: ТТК
D61: гор.блюдо | E61: Каша гречневая рассыпчатая | F61: 150 | G61: 3.77 | H61: 2.29 | I61: 39.72 | J61: 214 | K61: 171
D62: гор.напиток | E62: Чай с сахаром | F62: 200 | G62: 0.07 | H62: 0.02 | I62: 10.01 | J62: 40 | K62: 376
D63: хлеб | E63: Хлеб ржаной | F63: 50 | G63: 3.3 | H63: 0.6 | I63: 19.8 | J63: 99
D64: кисломол. | E64: Сыр порционно | F64: 10 | G64: 2.63 | H64: 2.66 | I64: 0 | J64: 34.33 | K64: 15
D65: фрукты
D67: итого | F67: 510 | G67: =SUM(G60:G66) -> 20.16 | H67: =SUM(H60:H66) -> 20.36 | I67: =SUM(I60:I66) -> 79.83 | J67: =SUM(J60:J66) -> 608.33 | L67: 74.77
A68: =A60 -> 1 | B68: =B60 -> 4 | C68: Обед | D68: закуска
D69: 1 блюдо
D70: 2 блюдо
D71: гарнир
D72: напиток
D73: хлеб бел.
D74: хлеб черн.
D77: итого | F77: =SUM(F68:F76) -> 0 | G77: =SUM(G68:G76) -> 0 | H77: =SUM(H68:H76) -> 0 | I77: =SUM(I68:I76) -> 0 | J77: =SUM(J68:J76) -> 0 | L77: 0
A78: =A60 -> 1 | B78: =B60 -> 4 | C78: Итого за день: | F78: =F67+F77 -> 510 | G78: =G67+G77 -> 20.16 | H78: =H67+H77 -> 20.36 | I78: =I67+I77 -> 79.83 | J78: =J67+J77 -> 608.33 | L78: 74.77
A79: 1 | B79: 5 | C79: Завтрак | D79: гор.блюдо | E79: Котлета из мяса птицы с макаронными изделиями отварными , с маслом сливочным | F79: 230 | G79: 11.45 | H79: 12.46 | I79: 31.32 | J79: 289.95 | K79: ТТК
D80: хлеб
D81: гор.напиток | E81: Компот из сухофруктов | F81: 200 | G81: 0.66 | H81: 0.09 | I81: 22.03 | J81: 92.8 | K81: 349
D82: хлеб | E82: Хлеб ржаной | F82: 30 | G82: 1.98 | H82: 0.36 | I82: 11.88 | J82: 59.4
D83: закуска | E83: Салат из моркови с яблоками | F83: 60 | G83: 0.64 | H83: 3.01 | I83: 5.11 | J83: 50.91 | K83: ТТК
D84: фрукты
D86: итого | F86: 520 | G86: 14.73 | H86: 15.92 | I86: 70.35 | J86: 493.06 | L86: 74.77
A87: =A79 -> 1 | B87: =B79 -> 5 | C87: Обед | D87: закуска
D88: 1 блюдо
D89: 2 блюдо
D90: гарнир
D91: напиток
D92: хлеб бел.
D93: хлеб черн.
D96: итого | F96: =SUM(F87:F95) -> 0 | G96: =SUM(G87:G95) -> 0 | H96: =SUM(H87:H95) -> 0 | I96: =SUM(I87:I95) -> 0 | J96: =SUM(J87:J95) -> 0 | L96: 0
A97: =A79 -> 1 | B97: =B79 -> 5 | C97: Итого за день: | F97: =F86+F96 -> 520 | G97: =G86+G96 -> 14.73 | H97: =H86+H96 -> 15.92 | I97: =I86+I96 -> 70.35 | J97: =J86+J96 -> 493.06 | L97: =L86+L96 -> 74.77
A98: 1 | B98: 6 | C98: Завтрак | D98: гор.блюдо | E98: Биточки рыбные с рисом отварным рассыпчатым с маслом сливочным | F98: 228 | G98: 12.93 | H98: 12.41 | I98: 43.12 | J98: 304.3 | K98: ТТК
D99: гор.блюдо
D100: гор.напиток | E100: Чай с сахаром, с лимоном | F100: 200 | G100: 0.11 | H100: 0.02 | I100: 10.15 | J100: 41.32 | K100: 377
D101: хлеб | E101: Хлеб ржаной | F101: 30 | G101: 1.98 | H101: 0.36 | I101: 11.88 | J101: 59.4
D102: закуска | E102: Салат из свежей капусты с морковью | F102: 80 | G102: 1.05 | H102: 2.6 | I102: 5.17 | J102: 48.32 | K102: 47
D105: итого | F105: 538 | G105: =SUM(G98:G104) -> 16.07 | H105: 15.39 | I105: 70.32 | J105: 453.34 | L105: 74.77
A106: =A98 -> 1 | B106: =B98 -> 6 | C106: Обед | D106: закуска
D107: 1 блюдо
D108: 2 блюдо
D109: гарнир
D110: напиток
D111: хлеб бел.
D112: хлеб черн.
D115: итого | F115: =SUM(F106:F114) -> 0 | G115: =SUM(G106:G114) -> 0 | H115: 0 | I115: 0 | J115: 0 | L115: =SUM(L106:L114) -> 0
A116: =A98 -> 1 | B116: =B98 -> 6 | C116: Итого за день: | F116: =F105+F115 -> 538 | G116: =G105+G115 -> 16.07 | H116: =H105+H115 -> 15.39 | I116: =I105+I115 -> 70.32 | J116: =J105+J115 -> 453.34 | L116: 74.77
A117: 2 | B117: 1 | C117: Завтрак | D117: гор.блюдо | E117: Сырники из творога с кашей пшенной молочной с маслом сливочным | F117: 245 | G117: 16.02 | H117: 18.13 | I117: 42.98 | J117: 386.4 | K117: ТТК
D118: гор.блюдо
D119: гор.напиток | E119: Чай "Витаминный" с шиповником | F119: 200 | G119: 0.24 | H119: 0.09 | I119: 12.43 | J119: 54.2 | K119: 376
D120: хлеб | E120: Хлеб пшеничный | F120: 25 | G120: 1.9 | H120: 0.2 | I120: 12.3 | J120: 58.75
D121: хлеб | E121: Хлеб ржаной | F121: 30 | G121: 1.98 | H121: 0.36 | I121: 11.88 | J121: 59.4
D124: итого | F124: 500 | G124: 20.14 | H124: 18.78 | I124: =SUM(I117:I123) -> 79.59 | J124: 558.75 | L124: 74.77
A125: =A117 -> 2 | B125: =B117 -> 1 | C125: Обед | D125: закуска
D126: 1 блюдо
D127: 2 блюдо
D128: гарнир
D129: напиток
D130: хлеб бел.
D131: хлеб черн.
D134: итого | F134: =SUM(F125:F133) -> 0 | G134: =SUM(G125:G133) -> 0 | H134: 0 | I134: 0 | J134: 0 | L134: =SUM(L125:L133) -> 0
A135: =A117 -> 2 | B135: =B117 -> 1 | C135: Итого за день: | F135: =F124+F134 -> 500 | G135: =G124+G134 -> 20.14 | H135: =H124+H134 -> 18.78 | I135: =I124+I134 -> 79.59 | J135: =J124+J134 -> 558.75 | L135: 74.77
A136: 2 | B136: 2 | C136: Завтрак | D136: гор.блюдо | E136: Рыба , тушенная в томате с овощами | F136: 100 | G136: 9.05 | H136: 6.09 | I136: 3.8 | J136: 105 | K136: 229
D137: гор.блюдо | E137: Пюре картофельное с маслом сливочным | F137: 153 | G137: 3.08 | H137: 6.25 | I137: 20.47 | J137: 150.45 | K137: 312
D138: гор.напиток | E138: Компот из свежих яблок | F138: 200 | G138: 0.16 | H138: 0.16 | I138: 17.9 | J138: 74.6 | K138: 342
D139: хлеб | E139: Хлеб пшеничный | F139: 35 | G139: 2.66 | H139: 0.28 | I139: 17.22 | J139: 82.25
D140: хлеб
D141: закуска | E141: Салат из отварной свеклы | F141: 60 | G141: 0.84 | H141: 3.61 | I141: 4.96 | J141: 55.68 | K141: 52
D143: итого | F143: 548 | G143: =SUM(G136:G142) -> 15.79 | H143: 16.39 | I143: 64.34 | J143: 467.98 | L143: 74.77
A144: =A136 -> 2 | B144: =B136 -> 2 | C144: Обед | D144: закуска
D145: 1 блюдо
D146: 2 блюдо
D147: гарнир
D148: напиток
D149: хлеб бел.
D150: хлеб черн.
D153: итого | F153: =SUM(F144:F152) -> 0 | G153: =SUM(G144:G152) -> 0 | H153: 0 | I153: 0 | J153: 0 | L153: =SUM(L144:L152) -> 0
A154: =A136 -> 2 | B154: =B136 -> 2 | C154: Итого за день: | F154: =F143+F153 -> 548 | G154: =G143+G153 -> 15.79 | H154: =H143+H153 -> 16.39 | I154: =I143+I153 -> 64.34 | J154: =J143+J153 -> 467.98 | L154: 74.77
A155: 2 | B155: 3 | C155: Завтрак | D155: гор.блюдо | E155: Плов из говядины с рисовой крупой | F155: 200 | G155: 15.95 | H155: 19.55 | I155: 39.75 | J155: 408.42 | K155: 265
D156: гор.блюдо
D157: гор.напиток | E157: Чай с сахаром | F157: 200 | G157: 0.07 | H157: 0.02 | I157: 10.01 | J157: 40 | K157: 376
D158: хлеб | E158: Хлеб пшеничный | F158: 25 | G158: 1.9 | H158: 0.2 | I158: 12.3 | J158: 58.75
D159: фрукты | E159: Яблоки | F159: 100 | G159: 0.4 | H159: 0.4 | I159: 9.8 | J159: 47
D160: хлеб | E160: Хлеб ржаной | F160: 20 | G160: 1.32 | H160: 0.24 | I160: 7.92 | J160: 39.6
D161: итого | F161: 545 | G161: =SUM(G155:G160) -> 19.64 | H161: 20.41 | I161: 79.78 | J161: 593.77 | L161: 74.77
A162: =A155 -> 2 | B162: =B155 -> 3 | C162: Обед | D162: закуска
D163: 1 блюдо
D164: 2 блюдо
D165: гарнир
D166: напиток
D167: хлеб бел.
D168: хлеб черн.
D171: итого | F171: =SUM(F162:F170) -> 0 | G171: =SUM(G162:G170) -> 0 | H171: 0 | I171: 0 | J171: 0 | L171: =SUM(L162:L170) -> 0
A172: =A155 -> 2 | B172: =B155 -> 3 | C172: Итого за день: | F172: =F161+F171 -> 545 | G172: =G161+G171 -> 19.64 | H172: =H161+H171 -> 20.41 | I172: 79.78 | J172: =J161+J171 -> 593.77 | L172: 74.77
A173: 2 | B173: 4 | C173: Завтрак | D173: гор.блюдо | E173: Котлета из мяса птицы с макаронными изделиями отварными, с маслом сливочным | F173: 230 | G173: 11.45 | H173: 12.46 | I173: 31.32 | J173: 289.95 | K173: ТТК
D174: гор.блюдо
D175: гор.напиток | E175: Какао с молоком | F175: 200 | G175: 1.58 | H175: 3.54 | I175: 7.6 | J175: 78.6 | K175: 382
D176: хлеб | E176: Хлеб пшеничный | F176: 30 | G176: 2.28 | H176: 0.24 | I176: 14.76 | J176: 70.5
D177: закуска | E177: Салат из моркови | F177: 60 | G177: 0.74 | H177: 0.06 | I177: 9.98 | J177: 49.02 | K177: ТТК
D180: итого | F180: 520 | G180: =SUM(G173:G179) -> 16.05 | H180: 16.3 | I180: 63.66 | J180: 488.07 | L180: 74.77
A181: =A173 -> 2 | B181: =B173 -> 4 | C181: Обед | D181: закуска
D182: 1 блюдо
D183: 2 блюдо
D184: гарнир
D185: напиток
D186: хлеб бел.
D187: хлеб черн.
D190: итого | F190: =SUM(F181:F189) -> 0 | G190: =SUM(G181:G189) -> 0 | H190: 0 | I190: 0 | J190: 0 | L190: =SUM(L181:L189) -> 0
A191: =A173 -> 2 | B191: =B173 -> 4 | C191: Итого за день: | F191: =F180+F190 -> 520 | G191: =G180+G190 -> 16.05 | H191: =H180+H190 -> 16.3 | I191: =I180+I190 -> 63.66 | J191: =J180+J190 -> 488.07 | L191: 74.77
A192: 2 | B192: 5 | C192: Завтрак | D192: фрукты | E192: Плоды и ягоды свежие(апельсины) | F192: 180 | G192: 1.62 | H192: 0.36 | I192: 14.58 | J192: 77.4 | K192: ТТК
D193: гор.напиток | E193: Компот из сухофруктов | F193: 200 | G193: 0.66 | H193: 0.09 | I193: 22.03 | J193: 92.8 | K193: 349
D194: хлеб
D195: хлеб | E195: Хлеб ржаной | F195: 20 | G195: 1.32 | H195: 0.24 | I195: 7.92 | J195: 39.6
D196: гор.блюдо | E196: Овощи тушеные с мясом | F196: 200 | G196: 12.48 | H196: 15.68 | I196: 19.34 | J196: 271.5 | K196: 143.241
D197: итого | F197: 600 | G197: =SUM(G192:G196) -> 16.08 | H197: 16.37 | I197: 63.87 | J197: 481.3 | L197: 74.77
A198: =A192 -> 2 | B198: =B192 -> 5 | C198: Обед | D198: закуска
D199: 1 блюдо
D200: 2 блюдо
D201: гарнир
D202: напиток
D203: хлеб бел.
D204: хлеб черн.
D207: итого | F207: =SUM(F198:F206) -> 0 | G207: =SUM(G198:G206) -> 0 | H207: 0 | I207: 0 | J207: 0 | L207: =SUM(L198:L206) -> 0
A208: =A192 -> 2 | B208: =B192 -> 5 | C208: Итого за день: | F208: =F197+F207 -> 600 | G208: =G197+G207 -> 16.08 | H208: 16.37 | I208: 63.87 | J208: 481.3 | L208: =L197+L207 -> 74.77
A209: 2 | B209: 6 | C209: Завтрак | D209: гор.блюдо | E209: Котлеты "Аппетитные" с кашей гречневой рассыпчатой с маслом сливочным | F209: 228 | G209: 15.16 | H209: 16.19 | I209: 44.63 | J209: 386.76 | K209: ТТК
D210: хлеб | E210: Хлеб пшеничный | F210: 45 | G210: 3.42 | H210: 0.36 | I210: 22.14 | J210: 105.75
D211: гор.напиток | E211: Чай с сахаром, с лимоном | F211: 200 | G211: 0.11 | H211: 0.02 | I211: 10.15 | J211: 41.32 | K211: 377
D212: хлеб
D213: закуска | E213: Салат из свежей капусты с морковью | F213: 80 | G213: 1.05 | H213: 2.6 | I213: 5.17 | J213: 48.32 | K213: 47
D215: итого | F215: 553 | G215: 19.74 | H215: =SUM(H209:H214) -> 19.17 | I215: 82.09 | J215: 582.15 | L215: 74.77
A216: =A209 -> 2 | B216: =B209 -> 6 | C216: Обед | D216: закуска
D217: 1 блюдо
D218: 2 блюдо
D219: гарнир
D220: напиток
D221: хлеб бел.
D222: хлеб черн.
D225: итого | F225: =SUM(F216:F224) -> 0 | G225: =SUM(G216:G224) -> 0 | H225: 0 | I225: 0 | J225: 0 | L225: =SUM(L216:L224) -> 0
A226: =A209 -> 2 | B226: =B209 -> 6 | C226: Итого за день: | F226: =F215+F225 -> 553 | G226: =G215+G225 -> 19.74 | H226: 19.17 | I226: 82.09 | J226: 582.15 | L226: =L215+L225 -> 74.77
C227: Среднее значение за период: | F227: 542 | G227: 17.890 | H227: 17.83 | I227: 74.030 | J227: 531.37 | L227: =AVERAGE(L226,L208,L191,L172,L154,L135,L116,L97,L78,L59,L41,L23) -> 74.77
